Cogmind - Beta 13 --- EXPLORER MODE // 2024.03.26 @ 07:41:38 // Winter2019/RPGLIKE Player: 3.2.1.HEAT DEATH Result: Core destroyed Performance ------------- Evolutions (0) 0 Regions Visited (1) 200 Robots Destroyed (16) 80 Value Destroyed (178) 178 Prototype IDs (0) 0 Alien Tech Used (0) 0 Bonus (0) 0 TOTAL SCORE: 458 Bonus ------- None Cogmind --------- Core Integrity 0/600 Matter 110/300 Energy 267/275 System Corruption 0% Temperature Critical (1252) Movement Core (400) Ox7 Location -10/Materials Parts ------- > --- POWER (2) -------- Ion Engine Light Ion Engine > --- PROPULSION (1) --- Compact Wheel > --- UTILITY (2) ------ Light Armor Plating Light Armor Plating > --- WEAPON (5) ------- Medium Laser Medium Laser Small Laser Beam Cannon Mining Laser > --- INVENTORY (0) ---- (None) Peak State ------------ > --- POWER ------------ Ion Engine Light Ion Engine > --- PROPULSION ------- Compact Wheel > --- UTILITY ---------- Targeting Computer Power Shielding > --- WEAPON ----------- Medium Laser Medium Laser Small Laser Beam Cannon Mining Laser > --- INVENTORY -------- (None) [Rating: 10] Favorites ----------- Power Ion Engine Engine Ion Engine Propulsion Compact Wheel Wheel Compact Wheel Utility Power Shielding Processor Targeting Computer Protection Power Shielding Weapon Small Laser Energy Gun Small Laser Energy Cannon Beam Cannon Special Weapon Mining Laser Build | -11 -10 ------- Run | Yrd Mat Slots Evolved 6 | 6 . Power 1 | 1 . Propulsion . | . . Utility 1 | 1 . Weapon 4 | 4 . Parts Attached 12 | 7 5 Power 2 | 2 . Engine 2 | 2 . Core . | . . Reactor . | . . Propulsion 1 | 1 . Treads . | . . Leg . | . . Wheel 1 | 1 . Hover . | . . Flight . | . . Utility 4 | 2 2 Device . | . . Storage . | . . Processor 1 | 1 . Hackware . | . . Protection 3 | 1 2 Artifact . | . . Weapon 5 | 2 3 Energy Gun 3 | 1 2 Energy Cannon 1 | . 1 Ballistic Gun . | . . Ballistic Cannon . | . . Launcher . | . . Special Weapon 1 | 1 . Impact Weapon . | . . Slashing Weapon . | . . Piercing Weapon . | . . Special Melee Weapon . | . . Unidentified Prototypes . | . . Parts Lost . | . . Power . | . . Propulsion . | . . Utility . | . . Weapon . | . . Highest Loss Streak . | . . To Critical Strikes . | . . Average Slot Usage (%) 91 | . 91 Engine 20 | . 20 Wheel 10 | . 10 Processor 3 | . 3 Protection 16 | . 16 Energy Gun 24 | . 24 Energy Cannon 7 | . 7 Special Weapon 10 | . 10 Naked Turns . | . . Heaviest Build 23 | 11 23 Greatest Support 16 | 16 16 Greatest Overweight (x) 7 | 3 7 Average Overweight (x) . | . . Largest Inventory Capacity . | . . Average Capacity . | . . Most Carried . | . . Average Carried . | . . Final Capacity . | . . Final Carried . | . . Class Distribution -------------------- 82% | Hacker-Mutant 17% | Hacker-Tank Dominant Class ---------------- Hacker-Tank | -10/Materials Resources | -11 -10 ----------- Run | Yrd Mat Matter Collected 270 | 270 . Remotely . | . . Salvage Created 396 | 201 195 Parts 34 | 21 13 Haulers Intercepted 1 | . 1 Recyclers Shooed . | . . Parts Field Recycled . | . . Retrieved Matter . | . . Parts Self-Destructed . | . . Prevented . | . . Kills | -11 -10 ------- Run | Yrd Mat Combat Hostiles Destroyed 2 | . 2 Guns 2 | . 2 Classes Destroyed 6 | 2 4 Builder 2 | . 2 Tunneler 9 | 9 . Hauler 1 | . 1 Recycler 1 | 1 . Watcher 1 | . 1 Grunt 2 | . 2 Best Kill Streak 5 | 5 2 Combat Bots Only 2 | . 2 Max Kills in Single Turn 1 | 1 1 Gunslinging . | . . Exploded . | . . Melee . | . . Uniques/NPCs Destroyed . | . . Combat | -11 -10 -------- Run | Yrd Mat Hostile Shots Fired 3 | . 3 Missed 1 | . 1 Damage Taken 611 | . 611 Core 604 | . 604 Absorbed by Shields . | . . Redirected to Core 4 | . 4 Ignored by Resistances 10 | . 10 Core Remaining (%) 100 | 100 . Volleys Fired 61 | 36 25 Largest 5 | 2 5 Hottest 300 | 140 300 Shots Fired 93 | 40 53 Gun 74 | 36 38 Cannon 7 | . 7 Launcher . | . . Special 12 | 4 8 Kinetic . | . . Thermal 93 | 40 53 Explosive . | . . Electromagnetic . | . . Robot Hit Streak 22 | 22 11 Robot Miss Streak 1 | 1 1 Penetration Max . | . . Secondary Targets . | . . Shots Hit Robots 47 | 35 12 Core Hits 21 | 11 10 Critical Kills . | . . Critical Parts Destroyed . | . . Critical Strikes 1 | . 1 Burn 1 | . 1 Melee Attacks . | . . Impact . | . . Slashing . | . . Piercing . | . . Sneak Attacks . | . . Combat Hostiles . | . . Follow-up Attacks . | . . Damage Inflicted 585 | 410 175 Guns 472 | 362 110 Cannons 17 | . 17 Explosions . | . . Melee . | . . Ramming . | . . Kinetic . | . . Thermal 585 | 410 175 Explosive . | . . Electromagnetic . | . . Impact . | . . Slashing . | . . Piercing . | . . Highest Corruption . | . . Average Corruption . | . . Corruption Purged . | . . Corruption Blocked . | . . Overload Shots . | . . Overflow Damage . | . . Projectiles . | . . Explosions . | . . Melee . | . . Knockbacks . | . . Impact . | . . Kinetic . | . . Secondary . | . . Self-Inflicted Damage . | . . Shots . | . . Rammed . | . . Targets Rammed . | . . Kicked . | . . Crushed . | . . Highest Temperature 1351 | 195 1351 Average Temperature 421 | 79 813 Received Heat Transfer 15 | . 15 Effects 68 | . 68 Shutdowns 16 | . 16 Energy Bleed 3 | . 3 Interference 4 | . 4 Matter Decay 5 | . 5 Short Circuit 4 | . 4 Damage (minor) 9 | . 9 Damage (major) 20 | . 20 Damage (core) 7 | . 7 Siege Activations . | . . Robots Corrupted . | . . Combat Hostiles . | . . Parts Fried . | . . Impact Corruptions . | . . Robots Melted . | . . Combat Hostiles . | . . Parts Melted 2 | 1 1 Heat Transferred 1409 | 925 484 Parts Sabotaged . | . . Parts Stolen . | . . Parts Stripped . | . . Power Chain Reactions . | . . Alert | -11 -10 ------- Run | Yrd Mat Peak Influence 120 | 50 120 Initial 24 | . 24 Average 45 | 26 77 Maximum Alert Level . | . . Low Security (%) 100 | 100 100 Level 1 . | . . Level 2 . | . . Level 3 . | . . Level 4 . | . . Level 5 . | . . High Security . | . . Max Security . | . . Squads Dispatched . | . . Investigation . | . . Extermination . | . . Reinforcement . | . . Assault . | . . Garrison . | . . Intercept . | . . Searches Triggered . | . . Construction Impeded . | . . Haulers Reinforced . | . . Active Scanning Responses . | . . Cargo Convoy Interrupts . | . . Stealth | -11 -10 --------- Run | Yrd Mat Distress Signals . | . . Communications Jammed . | . . Distress Signals . | . . Times Spotted 3 | . 3 Peak Tracking Total 2 | . 2 Tactical Retreats . | . . Traps | -11 -10 ------- Run | Yrd Mat Traps Triggered . | . . Indirectly . | . . Trap Hack Attempts . | . . Triggered . | . . Disarmed . | . . Reprogrammed . | . . Reused . | . . Traps Extracted . | . . Installed . | . . Triggered . | . . Machines | -11 -10 ---------- Run | Yrd Mat Machines Disabled . | . . Max in Single Turn . | . . Machines Repaired . | . . Machines Dismantled . | . . Machines Sabotaged . | . . Overloaded Fab Kills . | . . Hacking | -11 -10 --------- Run | Yrd Mat Machines Accessed . | . . Terminals . | . . Fabricators . | . . Repair Stations . | . . Recycling Units . | . . Scanalyzers . | . . Garrison Access . | . . Total Hacks . | . . Successful . | . . Failed . | . . Catastrophic . | . . Database Lockouts . | . . Manual . | . . Terminals . | . . Fabricators . | . . Repair Stations . | . . Recycling Units . | . . Scanalyzers . | . . Garrison Access . | . . Terminal Hacks . | . . Fabricator Hacks . | . . Repair Station Hacks . | . . Recycling Unit Hacks . | . . Scanalyzer . | . . Garrison Access Hacks . | . . Unauthorized Hacks . | . . Terminals . | . . Fabricators . | . . Repair Stations . | . . Recycling Units . | . . Scanalyzers . | . . Garrison Access . | . . Data Cores Recovered . | . . Used . | . . Hacking Detections . | . . Full Trace Events . | . . Feedback Events . | . . Feedback Blocked . | . . Robot Schematics Acquired . | . . Robots Built . | . . Authchips . | . . Time . | . . Total Robot Build Rating . | . . Part Schematics Acquired . | . . Parts Built . | . . Authchips . | . . Time . | . . Total Part Build Rating . | . . Parts Repaired . | . . Time . | . . Parts Recycled . | . . Recycled Matter . | . . Retrieved Matter . | . . Retrieved Components . | . . Parts Scanalyzed . | . . Part Schematics Acquired . | . . Parts Damaged . | . . Bothacking | -11 -10 ------------ Run | Yrd Mat Used RIF Installer . | . . Robots Hacked . | . . Non-combat . | . . Combat . | . . Robot Hacks Applied . | . . Relay Couplers Released . | . . Fabnet Peak Effective % . | . . Robots Rewired . | . . Allies Hacked . | . . Hacks Repelled . | . . Allies | -11 -10 -------- Run | Yrd Mat Total Allies . | . . Largest Group . | . . Highest-Rated Group . | . . Highest-Rated Ally . | . . Total Orders . | . . Ally Attacks . | . . Total Damage . | . . Kills . | . . Allies Corrupted . | . . Allies Melted . | . . Intel | -11 -10 ------- Run | Yrd Mat Robot Analysis Total . | . . Derelict Logs Recovered . | . . Drone Launches . | . . Drone Recoveries . | . . Exploration | -11 -10 ------------- Run | Yrd Mat Turns Passed 479 | 305 174 Spaces Moved 167 | 100 67 Core 19 | 16 3 Treads . | . . Legs . | . . Wheels 148 | 84 64 Hover . | . . Flight . | . . Fastest Speed 50 | 50 100 Average Speed 111 | 106 119 Slowest Speed 400 | 200 400 Overloaded Moves . | . . Propulsion Burnouts . | . . Robots Hopped . | . . Cave-ins Triggered . | . . Exploration Rate (%) 10 | 4 16 Regions Visited 1 Branch Regions . Pre-discovered Areas . | . . Known Exits Taken 1 | 1 . Unknown Exits Taken . | . . Scrap Searched . | . . Spaces Dug . | . . Terrain Destroyed 4 | 1 3 Melee . | . . Projectile 4 | 1 3 AOE . | . . Terrain Rammed . | . . Walls Destroyed . | . . Machines Disabled . | . . Actions | -11 -10 --------- Run | Yrd Mat Total 350 | 247 103 Wait 109 | 105 4 Move 166 | 99 67 Hop . | . . Pick Up . | . . Fast Attach 12 | 7 5 Attach . | . . Detach . | . . Swap . | . . Drop 2 | . 2 Fire 61 | 36 25 Melee . | . . Ram . | . . Kick . | . . Crush . | . . Escape Stasis . | . . Rewire . | . . Trap . | . . Miscellaneous . | . . Route ------- -11/Scrapyard -10/Materials History --------- Turn | Location | Event 1 | -11/Scrapyard | Upgraded with Power slot (x1) 1 | -11/Scrapyard | Upgraded with Utility slot (x1) 1 | -11/Scrapyard | Upgraded with Weapon slot (x4) 7 | -11/Scrapyard | Identified exit to Materials 7 | -11/Scrapyard | Discovered exit to Materials (range 15) 306 | -11/Scrapyard | Entered Materials 307 | -10/Materials | Build established: Hacker-Mutant 426 | -10/Materials | Core integrity fell below 50% 474 | -10/Materials | Core integrity fell below 20% 481 | -10/Materials | Core destroyed Last Messages --------------- 00466_ Power failure, Ion Engine shutdown. 00468_ Power failure, Lgt. Ion Engine shutdown. 00469_ Overheating: Matter decay (-34). 00470_ Overheating: Energy bleed (-55). 00473_ Overheating: Lgt. Armor Plating damaged (-10). 00473_ Overheating: Broken Com. Wheel damaged (-2). 00474_ Overheating: Core damaged (-102). 00474_ U-05 Engineer destroyed. 00475_ Overheating: Ion Engine damaged (-10). 00476_ Overheating: Med. Laser damaged (-4). 00476_ Overheating: Sml. Laser damaged (-9). 00476_ Overheating: Lgt. Armor Plating damaged (-5). 00476_ Overheating: Lgt. Armor Plating damaged (-19). 00477_ Power failure, Ion Engine shutdown. 00478_ Power failure, Lgt. Ion Engine shutdown. 00481_ Overheating: Core damaged (-72). Map ----- +----------------------------------------------------+ | ???????????????????????????????????????????? | | ???????????????????????????????????????????? | | ???????????????????????????????????????????? | | ???????????????????????????????????????????? | | ???????????????????????????????????????????? | | ???????????????????????????????????????????? | | ???????????????????????????????????????????? | | ???????????????????????????????????????????? | | ???????????????????????????????????????????? | | ???????????????????????????????????????????? | | ???????????????????????????????????????????? | | ???????????????????????????????????????????? | | ???????????????????????????????????????????? | | ???????????????????#+#?????????????????????? | | ??????????????????? ?????????????????????? | | ??????????????????? ?????????????????????? | | ??????????????????? ?????????????????????? | | ???????????????????# #?????????????????????? | | ?????#######???????# #?????????????????????? | | ?????# #??????# #?????????????????????? | | ?????# """#??????# ##????????????????????? | | ?????# """#??????#%##????????????????????? | | ?????# """########+##????????????????????? | | ?????# ?# %=%*#????????????????????? | | ???#?# ???# =%==#????????????????????? | | ???# ##+###### @* #????????????????????? | | ???# #| #????????????????????? | | ???#### %+! """ #????????????????????? | | ??#####+## *# """ #????????????????????? | | ??# # # """ #????????????????????? | | ??# # # """ #????????????????????? | | ??# # # #????????????????????? | | ??#! # ##########????????????????????? | | ??#!! / + #??????????????????????? | | ??#! # # """#??????????????????????? | | ??######## # """#??????????????????????? | | ??# =!!# # """#??????????????????????? | | ??# !!%# # """#??????????????????????? | | ??# """!+! # #??????????????????????? | | ??# R"!#! ########??????????????????????? | | ??# """ # #?????????????????????????????? | | ??# ?# #?????????????????????????????? | | ??######?# #?????????????????????????????? | | ?????????# #?????????????????????????????? | | ?????????# #?????????????????????????????? | | ??######## #?????????????????????????????? | | ??# % # #?????????????????????????????? | | ??# # #?????????????????????????????? | | ??# "" + #?????????????????????????????? | | ??# "T # #?????????????????????????????? | +----------------------------------------------------+ Best States ------------- Heat Dissipation 25 Energy Generation 20 Energy Capacity 275 Matter Stores 300 Matter Capacity 300 Sight Range 16 Terrain Scan Density 10 Armor Coverage 300 Resistance: KI 35 Resistance: TH 35 Resistance: EX 35 Resistance: EM 35 Resistance: I 35 Resistance: S 35 Resistance: P 35 Power Shielding 33 Evasion (%) 40 Targeting Accuracy 5 Offensive Hacking 20 Item Schematics ----------------- None Robot Schematics ------------------ None Fabricated ------------ Nothing Alien Tech Used ----------------- None Achievements -------------- None Challenges ------------ None RPGLIKE | -11 -10 --------- Run | Yrd Mat Levels Raised . | . . XP Earned 6320 | 6000 320 XP Spent 5100 | 5100 . Upgrades 7 | 7 . Power Slot 1 | 1 . Utility Slot 1 | 1 . Weapon Slot 4 | 4 . Energy Generation 1 | 1 . Protomatter Created . | . . Protomatter Decayed . | . . Game ------ Seed AblativeSuperchargedClaws Manual? 0 Play Time 00:04:08 Cumulative 655.0 hours Start 2024.03.26 @ 07:38:49 End 2024.03.26 @ 07:41:38 Sessions 1 Manual Loads 0 Difficulty Explorer Special Mode Winter2019/RPGLIKE Game No. 261 Rogue 235 Adventurer 3 Explorer 23 Win Type - Total 15 Types 10/2/1/1/0/1/0/0/0 Lore% 90 Gallery% 96 Achievement% 83 Wizard Run 0 Options --------- Layout 2 ASCII 0 Keyboard 0 Movement Numpad Keybinds 0 Fullscreen 2 Font 24/Smallcaps Map View 50x44 Zoom Use 0% Tactical HUD 1 Map Filters NONE Filters NONE Steam X RUN: 5fd94204-5528-440f-b117-a57e7f21ccbe